Cogmind - Beta 12 @@@ ROGUE MODE // 2023.07.11 @ 23:49:18 Player: hansy Result: Destroyed by H-66 Slayer with Gauss Rifle Performance ------------- Evolutions (4) 2000 Regions Visited (21) 4200 Robots Destroyed (244) 1220 Value Destroyed (9126) 9126 Prototype IDs (54) 1080 Alien Tech Used (0) 0 Bonus (4655) 4655 TOTAL SCORE: 22281 Bonus ------- High Alert Combat Kills 731 Follower Combat Kills 559 Entered Garrisons 800 Used RIF Installer 2000 Aligned with FarCom 300 Met Data Miner 300 Friendly Fire -35 Cogmind --------- Core Integrity 0/850 Matter 300/300 Energy 100/100 System Corruption 0% Temperature Cool (0) Movement Core (50) Location -6/Garrison Parts ------- > --- POWER (1) -------- (None) > --- PROPULSION (4) --- (None) > --- UTILITY (8) ------ (None) > --- WEAPON (2) ------- (None) > --- INVENTORY (5) ---- Armored Wheel Compact Matter Pod (44) Improved System Restoration Module Thermic Laser Thermic Laser Peak State ------------ > --- POWER ------------ Light Antimatter Reactor > --- PROPULSION ------- Gravmag Array Gravmag Array > --- UTILITY ---------- Advanced Heat Sink Advanced Heat Sink Large Storage Unit Machine Analyzer Transmission Jammer Improved Reaction Control System Experimental Thermal Shield Relay Coupler [NC] > --- WEAPON ----------- Thermic Laser Gauss Rifle > --- INVENTORY -------- Reinforced Deuterium Engine Cooling System High-capacity Matter Pod Skeleton Box Improved System Restoration Module Improved System Restoration Module Shock Rifle Lightning Gun Lightning Gun Plasma Rifle Improved Grenade Launcher Improved Datajack Improved Remote Datajack [Rating: 74] Favorites ----------- Power Light Ion Engine Engine Light Ion Engine Power Core Nuclear Core Reactor Light Antimatter Reactor Propulsion Aluminum Leg Treads Improved Treads Leg Aluminum Leg Wheel Armored Wheel Hover Unit Gravmag Array Utility Large Storage Unit Device Advanced Heat Sink Storage Large Storage Unit Processor Machine Analyzer Hackware Relay Coupler [NC] Protection Reactive Plating Weapon High-powered Shotgun Energy Gun Lightning Gun Energy Cannon Advanced Beam Cannon Ballistic Gun High-powered Shotgun Ballistic Cannon Enhanced Gauss Cannon Launcher Improved Grenade Launcher Special Weapon Remote Datajack Impact Weapon Hammer Slashing Weapon Axe Special Melee Weapon Datajack Build | -11 -10 -10 -9 -9 -9 -8 -8 -8 -8 -8 -7 -7 -7 -7 -6 -6 -6 -6 -6 -6 -6 ------- Run | Jun Mat Min Mat Min Exi Min Mat Gar Mat Gar Fac Low Low Dat Pro Fac Was Fac Gar Fac Gar Slots Evolved 8 | . . . 2 . . . 2 . . . 2 . . . . 2 . . . . . Power . | . . . . . . . . . . . . . . . . . . . . . . Propulsion 2 | . . . . . . . 2 . . . . . . . . . . . . . . Utility 6 | . . . 2 . . . . . . . 2 . . . . 2 . . . . . Weapon . | . . . . . . . . . . . . . . . . . . . . . . Parts Attached 246 | 8 7 18 29 1 1 1 19 43 2 10 16 6 6 . 7 15 3 12 37 5 . Power 21 | 1 . 3 2 . . . 1 4 . 1 . 2 1 . 1 1 . . 4 . . Engine 17 | 1 . 3 2 . . . . 3 . 1 . 2 . . 1 . . . 4 . . Core 3 | . . . . . . . 1 1 . . . . 1 . . . . . . . . Reactor 1 | . . . . . . . . . . . . . . . . 1 . . . . . Propulsion 58 | 2 3 8 6 . . . 7 7 1 . 1 4 3 . 2 3 . . 7 4 . Treads 5 | . 3 2 . . . . . . . . . . . . . . . . . . . Leg 40 | 2 . 6 6 . . . 7 7 1 . . 3 . . 1 1 . . 6 . . Wheel 4 | . . . . . . . . . . . . . . . . . . . . 4 . Hover 9 | . . . . . . . . . . . 1 1 3 . 1 2 . . 1 . . Flight . | . . . . . . . . . . . . . . . . . . . . . . Utility 68 | 2 2 2 11 1 . . 3 13 1 1 7 . 1 . 2 10 3 2 7 . . Device 38 | 1 . 1 5 . . . 2 5 1 1 2 . 1 . 2 8 3 1 5 . . Storage 6 | 1 1 . 1 1 . . . . . . 1 . . . . 1 . . . . . Processor 4 | . . . 1 . . . 1 1 . . . . . . . . . 1 . . . Hackware 14 | . . . . . . . . 7 . . 4 . . . . 1 . . 2 . . Protection 6 | . 1 1 4 . . . . . . . . . . . . . . . . . . Artifact . | . . . . . . . . . . . . . . . . . . . . . . Weapon 99 | 3 2 5 10 . 1 1 8 19 . 8 8 . 1 . 2 1 . 10 19 1 . Energy Gun 36 | 2 1 1 2 . . . 3 10 . 1 2 . . . 1 1 . 7 5 . . Energy Cannon 5 | . . . 2 . . . . . . . . . . . . . . . 3 . . Ballistic Gun 24 | 1 1 . 4 . . 1 3 2 . 2 2 . 1 . 1 . . 1 5 . . Ballistic Cannon 4 | . . . . . . . . . . 2 2 . . . . . . . . . . Launcher 10 | . . . 1 . . . 2 1 . 3 . . . . . . . 2 1 . . Special Weapon 6 | . . 2 . . . . . 2 . . 2 . . . . . . . . . . Impact Weapon 2 | . . 2 . . . . . . . . . . . . . . . . . . . Slashing Weapon 5 | . . . . . . . . . . . . . . . . . . . 5 . . Piercing Weapon . | . . . . . . . . . . . . . . . . . . . . . . Special Melee Weapon 7 | . . . 1 . 1 . . 4 . . . . . . . . . . . 1 . Unidentified Prototypes 6 | . . . 2 . . . 1 . . . . . . . 2 . 1 . . . . Corrupted Parts 5 | . . . . . . . . 1 . . . . . . 1 3 . . . . . System Corruption 24 | . . . . . . . . 3 . . . . . . 6 15 . . . . . Parts Lost 57 | . 1 7 7 . . . 1 3 . . 1 1 4 . 7 . . 1 24 . . Power 9 | . . 2 1 . . . . 1 . . . . 1 . 1 . . . 3 . . Propulsion 19 | . . 2 3 . . . . 2 . . 1 1 1 . 3 . . . 6 . . Utility 12 | . . 1 2 . . . 1 . . . . . 2 . 1 . . 1 4 . . Weapon 17 | . 1 2 1 . . . . . . . . . . . 2 . . . 11 . . Highest Loss Streak 13 | . 1 2 2 . . . 1 1 . . 1 1 4 . 4 . . 1 13 . . To Critical Strikes 1 | . . . . . . . . . . . . . . . 1 . . . . . . Average Slot Usage (%) 93 | . 99 99 95 100 100 100 98 98 95 98 95 99 97 84 72 78 79 83 74 40 48 Engine 7 | . 14 13 10 11 11 11 2 5 9 9 7 7 6 . 4 . . . 3 . . Core 1 | . . . . . . . 6 3 . . . . . 7 2 . . . . . . Treads 3 | . 26 15 . . . . . . . . . . . . . . . . . . . Leg 19 | . . 11 19 22 22 22 35 35 35 36 28 28 26 . 5 3 . . 12 . . Hover 1 | . . . . . . . . . . . . . 1 23 3 8 13 13 5 . . Device 12 | . 6 6 13 22 22 22 15 3 5 15 4 7 6 7 14 26 24 24 11 . . Storage 9 | . 14 14 11 11 11 11 9 9 9 9 7 7 7 7 7 6 6 6 5 . . Processor 7 | . . . . 11 11 11 10 18 18 9 7 7 7 7 7 6 6 6 13 13 10 Hackware 5 | . . . . . . . . 4 . . 22 23 22 15 9 6 13 13 10 13 10 Protection 3 | . 7 7 17 . . . . . . . . . . . . . . . . . . Energy Gun 6 | . 20 9 9 . . . 4 11 . 6 5 . . . 5 6 6 9 . . . Ballistic Gun 8 | . 7 12 8 22 12 22 12 . 18 3 1 7 12 15 7 6 . . 4 . . Naked Turns 8 | . . . . . . . . . . . . . . . . . . . . . 8 Heaviest Build 49 | 12 22 23 40 40 40 40 41 39 40 45 43 49 39 34 47 48 45 46 42 1 1 Greatest Support 68 | 20 46 46 25 20 20 20 68 66 48 48 48 48 48 27 28 48 40 40 60 48 48 Greatest Overweight (x) 3 | . . . 2 1 1 1 1 . . . 1 1 1 1 3 1 1 1 2 . . Average Overweight (x) . | . . . 1 1 1 1 . . . . . . . 1 1 . . . . . . Largest Inventory Capacity 15 | 8 10 10 10 15 15 15 15 15 15 15 15 15 15 15 15 15 15 15 15 5 5 Average Capacity 13 | 7 9 10 10 14 15 15 15 15 15 15 15 15 15 15 15 15 15 15 14 5 5 Most Carried 15 | 4 10 10 10 12 13 13 15 15 15 15 15 15 15 10 12 15 15 15 15 5 5 Average Carried 11 | 2 9 8 9 10 12 13 13 13 14 14 13 14 14 10 10 10 14 13 13 4 5 Final Capacity 15 | 8 10 10 10 15 15 15 15 15 15 15 15 15 15 15 15 15 15 15 5 5 5 Final Carried 15 | 3 10 7 7 12 13 13 14 14 15 15 15 14 10 10 12 14 14 15 5 5 5 Class Distribution -------------------- 62% | Scavenger-Mutant 33% | Mutant Dominant Class ---------------- Mutant | -10/Materials Mutant | -10/Mines Scavenger-Mutant | -9/Materials Scavenger-Mutant | -9/Mines Scavenger-Mutant | -9/Exiles Scavenger-Mutant | -8/Mines Mutant | -8/Materials Mutant | -8/Garrison Scavenger-Mutant | -8/Materials Scavenger-Mutant | -8/Garrison Scavenger-Mutant | -7/Factory Scavenger-Mutant | -7/Lower Caves Scavenger-Mutant | -7/Lower Caves Scavenger-Mutant | -7/Data Miner Scavenger-Mutant | -6/Proximity Caves Scavenger-Mutant | -6/Factory Scavenger-Mutant | -6/Waste Scavenger-Mutant | -6/Factory Scavenger-Mutant | -6/Garrison Mutant | -6/Factory Mutant | -6/Garrison Resources | -11 -10 -10 -9 -9 -9 -8 -8 -8 -8 -8 -7 -7 -7 -7 -6 -6 -6 -6 -6 -6 -6 ----------- Run | Jun Mat Min Mat Min Exi Min Mat Gar Mat Gar Fac Low Low Dat Pro Fac Was Fac Gar Fac Gar Matter Collected 5959 | 255 251 263 812 113 . 42 446 1047 112 699 210 397 163 . 241 163 . 211 384 . 150 Remotely . | . . . . . . . . . . . . . . . . . . . . . . Salvage Created 8359 | 124 699 719 1774 136 . 42 935 1210 198 147 208 312 202 . 454 204 . 261 734 . . Parts 492 | 7 54 36 104 8 . 7 59 62 13 26 18 15 20 . 18 2 . 17 26 . . Haulers Intercepted 5 | . 2 . 3 . . . . . . . . . . . . . . . . . . Recyclers Shooed 5 | . . 1 3 . . . . . . . 1 . . . . . . . . . . Parts Field Recycled . | . . . . . . . . . . . . . . . . . . . . . . Retrieved Matter . | . . . . . . . . . . . . . . . . . . . . . . Parts Self-Destructed 61 | . . . . . . . . . . . . 19 19 . 23 . . . . . . Prevented 6 | . . . . . . . . . . . . . . . 6 . . . . . . Kills | -11 -10 -10 -9 -9 -9 -8 -8 -8 -8 -8 -7 -7 -7 -7 -6 -6 -6 -6 -6 -6 -6 ------- Run | Jun Mat Min Mat Min Exi Min Mat Gar Mat Gar Fac Low Low Dat Pro Fac Was Fac Gar Fac Gar Combat Hostiles Destroyed 197 | . 15 19 42 5 . 4 22 26 3 10 3 10 6 . 7 1 . 7 17 . . Melee 5 | . . 3 . . . . . . . . . . . . . . . . 2 . . Guns 146 | . 13 15 27 5 . 4 22 24 3 2 1 3 6 . 7 1 . 4 9 . . Cannons 21 | . . . 7 . . . . . . 4 1 7 . . . . . . 2 . . AOE 23 | . 2 . 8 . . . . 1 . 4 1 . . . . . . 3 4 . . Classes Destroyed 19 | 2 5 2 3 . . . 4 . . . 1 . 1 . . . . . 1 . . Worker 7 | . . 3 1 1 . . . . . . . . . . . . . 2 . . . Builder 1 | . . . . . . . 1 . . . . . . . . . . . . . . Tunneler 2 | 1 . . 1 . . . . . . . . . . . . . . . . . . Hauler 5 | . 2 . 3 . . . . . . . . . . . . . . . . . . Recycler 6 | 1 . 1 2 . . . . . . . 1 . . . . 1 . . . . . Minesweeper 1 | . . . . . . . . . . . . . 1 . . . . . . . . Mechanic 2 | . . . . . . . 1 . . . . . . . 1 . . . . . . Operator 7 | . 2 1 . . . . 4 . . . . . . . . . . . . . . Watcher 17 | . 3 . 5 . . . 3 1 1 1 1 . . . . . . 2 . . . Swarmer 73 | . 6 7 10 3 . 4 6 9 . 7 . 4 4 . 1 . . 6 6 . . Saboteur 2 | . . . . . . . . . . . . . . . . . . . 2 . . Grunt 74 | . 9 11 20 2 . . 7 10 . . . 4 2 . 2 . . . 7 . . Brawler 4 | . . . 2 . . . . . . . . 1 . . 1 . . . . . . Duelist 3 | . . . . . . . 1 1 . . . . . . . . . . 1 . . Protector 1 | . . . 1 . . . . . . . . . . . . . . . . . . Sentry 31 | . . . 9 . . . 7 6 3 3 . 1 . . 1 . . . 1 . . Hunter 2 | . . . . . . . 1 . . . 1 . . . . . . . . . . Programmer 6 | . . . . . . . . . . . 2 . . . 2 1 . 1 . . . Assembled 1 | . . 1 . . . . . . . . . . . . . . . . . . . Best Kill Streak 12 | 1 4 4 12 2 . 4 4 4 1 3 2 4 4 . 2 1 . 5 6 . . Combat Bots Only 11 | . 3 4 11 2 . 4 3 4 1 3 1 4 4 . 2 1 . 3 6 . . Max Kills in Single Turn 5 | 1 2 2 4 1 . 1 2 2 1 3 2 1 2 . 1 1 . 5 4 . . Gunslinging 1 | . . . . . . . 1 1 . . . . 1 . . . . . 1 . . Exploded 4 | . 2 . 3 . . . . 1 . 3 1 . . . . . . 3 4 . . Melee 1 | . . 1 . . . . . . . . . . . . . . . . 1 . . Uniques/NPCs Destroyed . | . . . . . . . . . . . . . . . . . . . . . . Combat | -11 -10 -10 -9 -9 -9 -8 -8 -8 -8 -8 -7 -7 -7 -7 -6 -6 -6 -6 -6 -6 -6 -------- Run | Jun Mat Min Mat Min Exi Min Mat Gar Mat Gar Fac Low Low Dat Pro Fac Was Fac Gar Fac Gar Damage Taken 10207 | . 428 1022 1282 139 . 69 795 1342 176 205 156 483 437 . 700 29 . 441 2431 26 46 Core 2004 | . 105 118 134 . . 13 173 238 23 32 36 66 101 . 114 14 . 89 702 . 46 Absorbed by Shields 258 | . . . . 38 . 18 43 12 66 81 . . . . . . . . . . . Regen/Repaired (Parts) 118 | . 10 . . . . . 8 . 100 . . . . . . . . . . . . Core Remaining (%) 48 | 100 . 10 . . . 63 . . . 15 . . . . 54 . . . . . . Volleys Fired 684 | 3 53 70 119 11 . 5 77 96 9 48 14 28 16 . 36 7 . 27 65 . . Largest 2 | 2 2 2 2 2 . 2 2 2 2 2 2 2 2 . 2 2 . 2 2 . . Hottest 170 | 60 80 70 125 50 . 50 110 110 56 112 110 85 56 . 83 113 . 110 170 . . Shots Fired 1179 | 6 105 133 205 21 1 9 148 144 18 66 22 56 32 . 71 14 . 47 81 . . Gun 1006 | 6 105 133 163 21 1 9 142 125 18 22 12 28 32 . 71 14 . 45 59 . . Cannon 122 | . . . 36 . . . . . . 32 5 28 . . . . . . 21 . . Launcher 35 | . . . 2 . . . 6 12 . 12 . . . . . . . 2 1 . . Special 16 | . . . 4 . . . . 7 . . 5 . . . . . . . . . . Kinetic 542 | 3 13 70 72 21 1 9 98 . 18 41 10 56 32 . 43 7 . 5 43 . . Thermal 341 | . . 44 102 . . . 44 112 . . . . . . . 2 . 5 32 . . Explosive 35 | . . . 2 . . . 6 12 . 12 . . . . . . . 2 1 . . Electromagnetic 249 | 3 92 19 29 . . . . 13 . 13 7 . . . 28 5 . 35 5 . . Robot Hit Streak 29 | 1 9 13 11 3 . 4 11 29 6 5 10 7 10 . 15 18 . 19 11 . . Robot Miss Streak 10 | 2 3 3 10 6 . 4 3 2 1 4 4 5 3 . 2 . . 2 2 . . Penetration Max 1 | . . . . . . . . . . . . 1 1 . 1 1 . . 1 . . Secondary Targets 13 | . 2 1 . . . . 4 4 . . . . 1 . . . . . 1 . . Max Gunslinging Chain 1 | . 1 1 . . . . 1 1 . . . . 1 . . . . . 1 . . Shots Hit Robots 803 | 2 65 102 143 13 4 4 110 99 13 23 15 33 20 . 53 13 . 31 59 . 1 Core Hits 426 | 2 31 40 81 8 . 4 59 72 5 14 9 14 10 . 24 5 . 13 34 . 1 Critical Kills 2 | . . . 1 . . . . . . . . . . . . . . . 1 . . Critical Parts Destroyed 4 | . . 1 1 . . 1 . . 1 . . . . . . . . . . . . Critical Strikes 38 | . 2 6 5 . . 1 2 3 1 2 . 6 . . 1 1 . 3 5 . . Burn 18 | . . 5 3 . . . 2 3 . . . . . . . 1 . 1 3 . . Meltdown 1 | . . . 1 . . . . . . . . . . . . . . . . . . Destroy 4 | . . . 1 . . 1 . . 1 . . . . . . . . . 1 . . Blast 8 | . . . . . . . . . . 2 . 6 . . . . . . . . . Corrupt 5 | . 2 . . . . . . . . . . . . . 1 . . 2 . . . Smash 1 | . . 1 . . . . . . . . . . . . . . . . . . . Sever 1 | . . . . . . . . . . . . . . . . . . . 1 . . Melee Attacks 35 | . . 19 . . 4 . . . . . . . . . . . . . 11 . 1 Thermal 6 | . . . . . . . . . . . . . . . . . . . 6 . . Impact 19 | . . 19 . . . . . . . . . . . . . . . . . . . Slashing 5 | . . . . . . . . . . . . . . . . . . . 5 . . Piercing . | . . . . . . . . . . . . . . . . . . . . . . Sneak Attacks 4 | . . . . . 4 . . . . . . . . . . . . . . . . Combat Hostiles . | . . . . . . . . . . . . . . . . . . . . . . Follow-up Attacks . | . . . . . . . . . . . . . . . . . . . . . . Damage Inflicted 19637 | 28 1078 1409 3809 197 . 118 2043 3809 275 840 409 949 458 . 1072 287 . 1210 1642 . 4 Guns 12877 | 28 961 984 2461 197 . 118 2030 1681 275 262 239 304 458 . 1072 287 . 723 797 . . Cannons 1927 | . . . 608 . . . . . . 363 36 645 . . . . . . 275 . . Explosions 4185 | . 117 50 727 . . . . 2128 . 215 128 . . . . . . 487 333 . . Melee 604 | . . 367 . . . . . . . . . . . . . . . . 237 . . Ramming 31 | . . 8 . . . . 13 . . . 6 . . . . . . . . . 4 Kinetic 7046 | . 49 376 1071 197 . 118 1408 . 275 445 109 949 458 . 801 139 . 127 524 . . Thermal 5456 | . 117 507 1690 . . . 622 1736 . 46 128 . . . . 44 . 110 456 . . Explosive 3537 | . . . 595 . . . . 1953 . 169 . . . . . . . 487 333 . . Electromagnetic 2963 | 28 912 151 453 . . . . 120 . 180 166 . . . 271 104 . 486 92 . . Impact 367 | . . 367 . . . . . . . . . . . . . . . . . . . Slashing 237 | . . . . . . . . . . . . . . . . . . . 237 . . Piercing . | . . . . . . . . . . . . . . . . . . . . . . Highest Corruption 15 | . . . 7 8 8 8 . 3 . . . . . . 11 15 . 2 2 . . Average Corruption 6 | . . . 6 7 8 8 . 2 . . . . . . 7 8 . 1 1 . . Corruption Purged 26 | . . . . . . . . 3 . . . . . . 5 15 . 1 2 . . Corruption Blocked . | . . . . . . . . . . . . . . . . . . . . . . Effects 130 | . . . 47 29 15 14 . 1 . . . . . . 17 5 . 2 . . . Message Errors 46 | . . . 18 8 5 5 . . . . . . . . 8 2 . . . . . Matter Fused 25 | . . . 8 4 4 4 . 1 . . . . . . 4 . . . . . . Heat Flow Errors 18 | . . . 3 8 1 3 . . . . . . . . . 3 . . . . . Energy Discharges 11 | . . . 5 1 2 1 . . . . . . . . . . . 2 . . . Parts Fused 1 | . . . . . . . . . . . . . . . 1 . . . . . . Data Loss (minor) 12 | . . . 5 4 1 . . . . . . . . . 2 . . . . . . Data Loss (major) 4 | . . . 1 2 . . . . . . . . . . 1 . . . . . . Misfires 4 | . . . 3 . 1 . . . . . . . . . . . . . . . . Alerts 4 | . . . 1 1 1 1 . . . . . . . . . . . . . . . Weapon Failures 5 | . . . 3 1 . . . . . . . . . . 1 . . . . . . Overload Shots . | . . . . . . . . . . . . . . . . . . . . . . Overflow Damage 168 | . . 33 31 . . . . 7 . 19 24 . . . . . . 39 15 . . Projectiles 30 | . . . 10 . . . . . . 19 . . . . . . . . 1 . . Explosions 120 | . . 15 21 . . . . 7 . . 24 . . . . . . 39 14 . . Melee 18 | . . 18 . . . . . . . . . . . . . . . . . . . Knockbacks 5 | . . . . . . . . . . 1 . 4 . . . . . . . . . Impact . | . . . . . . . . . . . . . . . . . . . . . . Kinetic 5 | . . . . . . . . . . 1 . 4 . . . . . . . . . Secondary . | . . . . . . . . . . . . . . . . . . . . . . Self-Inflicted Damage 285 | . . . 53 . . . . 68 . 87 42 . . . . . . . 33 . 2 Shots 10 | . . . 2 . . . . 2 . 4 1 . . . . . . . 1 . . Rammed 4 | . . 3 . . . . . . . . . . . . . . . . . . 1 Targets Rammed 6 | . . 3 . . . . 1 . . . 1 . . . . . . . . . 1 Kicked 2 | . . . . . . . 1 . . . 1 . . . . . . . . . . Crushed . | . . . . . . . . . . . . . . . . . . . . . . Highest Temperature 369 | 40 208 369 253 246 101 91 36 306 3 216 84 90 17 . 45 204 . . 45 . . Average Temperature 78 | 19 53 159 60 97 58 47 12 92 3 59 41 34 8 . 10 91 . . 16 . . Received Heat Transfer 3430 | . 240 458 549 47 . . 419 552 37 24 . 129 135 . 159 . . 6 669 6 . Effects 7 | . . 3 . . . . . 4 . . . . . . . . . . . . . Energy Bleed 1 | . . . . . . . . 1 . . . . . . . . . . . . . Interference 4 | . . 1 . . . . . 3 . . . . . . . . . . . . . Matter Decay 1 | . . 1 . . . . . . . . . . . . . . . . . . . Short Circuit 1 | . . 1 . . . . . . . . . . . . . . . . . . . Siege Activations . | . . . . . . . . . . . . . . . . . . . . . . Robots Corrupted . | . . . . . . . . . . . . . . . . . . . . . . Combat Hostiles . | . . . . . . . . . . . . . . . . . . . . . . Parts Fried 11 | . 3 1 2 . . . . . . . . . . . . 3 . 2 . . . Impact Corruptions 2 | . . 2 . . . . . . . . . . . . . . . . . . . Robots Melted 2 | . . . 1 . . . . 1 . . . . . . . . . . . . . Combat Hostiles 1 | . . . . . . . . 1 . . . . . . . . . . . . . Parts Melted 34 | . . 3 6 . . . 3 11 . . . . . . . 2 . 4 5 . . Heat Transferred 11343 | . 100 1728 3105 . . . 1332 3334 . 36 100 . . . . 200 . 300 1108 . . Parts Sabotaged 19 | . . . . . . . . . . . . . . . . . . . 10 . 9 Parts Stolen . | . . . . . . . . . . . . . . . . . . . . . . Parts Stripped . | . . . . . . . . . . . . . . . . . . . . . . Power Chain Reactions 10 | . 2 1 3 . . . . 2 . 1 1 . . . . . . . . . . Missiles Intercepted . | . . . . . . . . . . . . . . . . . . . . . . Alert | -11 -10 -10 -9 -9 -9 -8 -8 -8 -8 -8 -7 -7 -7 -7 -6 -6 -6 -6 -6 -6 -6 ------- Run | Jun Mat Min Mat Min Exi Min Mat Gar Mat Gar Fac Low Low Dat Pro Fac Was Fac Gar Fac Gar Peak Influence 1447 | 10 313 159 677 314 . 105 451 1447 872 924 485 . . . . 87 60 121 412 225 157 Initial 705 | . 6 66 13 264 . . . 227 705 368 485 . . . . 50 . 42 39 210 157 Average 293 | 2 145 54 246 172 . 80 271 801 747 609 340 . . . . 52 23 65 281 210 157 Maximum Alert Level 4 | . 1 . 2 1 . . 2 4 3 3 2 . . . . . . . 2 1 . Low Security (%) 48 | 100 74 100 42 59 . 100 24 . . . 10 . . . . 100 100 100 31 . 100 Level 1 25 | . 25 . 28 40 . . 58 18 . 18 67 . . . . . . . 42 100 . Level 2 14 | . . . 28 . . . 17 23 3 50 22 . . . . . . . 26 . . Level 3 7 | . . . . . . . . 26 96 30 . . . . . . . . . . . Level 4 4 | . . . . . . . . 31 . . . . . . . . . . . . . Level 5 . | . . . . . . . . . . . . . . . . . . . . . . High Security . | . . . . . . . . . . . . . . . . . . . . . . Max Security . | . . . . . . . . . . . . . . . . . . . . . . Squads Dispatched 21 | . 4 . 4 . . . 3 . 1 . 4 . . . 1 . . 4 . . . Investigation 9 | . 3 . 1 . . . 1 . 1 . 2 . . . . . . 1 . . . Extermination 3 | . . . . . . . . . . . 2 . . . . . . 1 . . . Reinforcement 5 | . 1 . . . . . 2 . . . . . . . . . . 2 . . . Assault 4 | . . . 3 . . . . . . . . . . . 1 . . . . . . Garrison . | . . . . . . . . . . . . . . . . . . . . . . Intercept . | . . . . . . . . . . . . . . . . . . . . . . Searches Triggered . | . . . . . . . . . . . . . . . . . . . . . . Construction Impeded . | . . . . . . . . . . . . . . . . . . . . . . Haulers Reinforced . | . . . . . . . . . . . . . . . . . . . . . . Active Scanning Responses . | . . . . . . . . . . . . . . . . . . . . . . Cargo Convoy Interrupts . | . . . . . . . . . . . . . . . . . . . . . . Stealth | -11 -10 -10 -9 -9 -9 -8 -8 -8 -8 -8 -7 -7 -7 -7 -6 -6 -6 -6 -6 -6 -6 --------- Run | Jun Mat Min Mat Min Exi Min Mat Gar Mat Gar Fac Low Low Dat Pro Fac Was Fac Gar Fac Gar Distress Signals 6 | . . . 4 . . . . . . . 2 . . . . . . . . . . Communications Jammed 15 | . . . . . . . . . . 12 . . . . . 2 . 1 . . . Distress Signals 13 | . . . . . . . . . . 12 . . . . . . . 1 . . . Times Spotted 306 | . 24 24 57 5 . 3 38 39 7 10 9 11 6 . 17 1 6 16 26 2 5 Peak Tracking Total 10 | . 3 4 10 2 . 3 4 4 3 2 4 4 4 . 4 1 6 4 7 5 5 Tactical Retreats 17 | . 3 2 2 . . . 1 1 . 2 . . . . 2 . . 1 3 . . Traps | -11 -10 -10 -9 -9 -9 -8 -8 -8 -8 -8 -7 -7 -7 -7 -6 -6 -6 -6 -6 -6 -6 ------- Run | Jun Mat Min Mat Min Exi Min Mat Gar Mat Gar Fac Low Low Dat Pro Fac Was Fac Gar Fac Gar Traps Triggered 19 | . 1 . 4 1 . . 1 6 2 . . . . . . 1 . 1 1 . 1 Indirectly . | . . . . . . . . . . . . . . . . . . . . . . Trap Hack Attempts 69 | . . . 12 . . . . 57 . . . . . . . . . . . . . Triggered . | . . . . . . . . . . . . . . . . . . . . . . Disarmed 2 | . . . 1 . . . . 1 . . . . . . . . . . . . . Reprogrammed 6 | . . . . . . . . 6 . . . . . . . . . . . . . Reused . | . . . . . . . . . . . . . . . . . . . . . . Traps Extracted . | . . . . . . . . . . . . . . . . . . . . . . Installed . | . . . . . . . . . . . . . . . . . . . . . . Triggered 2 | . . . . . . . . . . 2 . . . . . . . . . . . Machines | -11 -10 -10 -9 -9 -9 -8 -8 -8 -8 -8 -7 -7 -7 -7 -6 -6 -6 -6 -6 -6 -6 ---------- Run | Jun Mat Min Mat Min Exi Min Mat Gar Mat Gar Fac Low Low Dat Pro Fac Was Fac Gar Fac Gar Machines Disabled 28 | . 1 1 4 . . 1 3 7 1 5 . . . . 1 . . 1 3 . . Max in Single Turn 2 | . 1 1 1 . . 1 1 2 1 1 . . . . . . . 1 2 . . Garrison Relay 7 | . . . . . . . . 5 . 1 . . . . . . . . 1 . . Phase Generator 3 | . . . . . . . . 1 . 1 . . . . . . . . 1 . . Machines Repaired . | . . . . . . . . . . . . . . . . . . . . . . Machines Sabotaged . | . . . . . . . . . . . . . . . . . . . . . . Overloaded Fab Kills . | . . . . . . . . . . . . . . . . . . . . . . Hacking | -11 -10 -10 -9 -9 -9 -8 -8 -8 -8 -8 -7 -7 -7 -7 -6 -6 -6 -6 -6 -6 -6 --------- Run | Jun Mat Min Mat Min Exi Min Mat Gar Mat Gar Fac Low Low Dat Pro Fac Was Fac Gar Fac Gar Machines Accessed 68 | . 10 . 12 1 2 . 8 3 5 . 6 2 . 4 . 2 . 11 . 2 . Terminals 40 | . 8 . 10 . . . 5 3 2 . 3 . . . . 1 . 7 . 1 . Fabricators 4 | . . . . . . . . . . . 2 . . . . . . 2 . . . Repair Stations 5 | . 1 . 1 . . . 1 . 1 . . . . . . . . 1 . . . Recycling Units 3 | . 1 . . . . . 1 . 1 . . . . . . . . . . . . Scanalyzers 2 | . . . 1 . . . . . . . 1 . . . . . . . . . . Garrison Access 5 | . . . . . . . 1 . 1 . . . . . . 1 . 1 . 1 . Total Hacks 228 | . 34 . 38 1 24 . 23 4 13 . 16 7 . 32 . 2 . 28 . 6 . Successful 135 | . 20 . 16 1 24 . 8 1 8 . 6 7 . 32 . . . 11 . 1 . Failed 92 | . 14 . 21 . . . 15 3 5 . 10 . . . . 2 . 17 . 5 . Catastrophic 15 | . . . 4 . . . . 1 2 . 3 . . . . 1 . 4 . . . Database Lockouts 1 | . . . 1 . . . . . . . . . . . . . . . . . . Manual 106 | . 23 . 23 . 1 . 18 1 5 . 10 . . . . 2 . 18 . 5 . Terminals 115 | . 24 . 33 . . . 15 4 5 . 7 . . . . 1 . 21 . 5 . Fabricators 9 | . . . . . . . . . . . 6 . . . . . . 3 . . . Repair Stations 21 | . 6 . 3 . . . 4 . 5 . . . . . . . . 3 . . . Recycling Units 9 | . 4 . . . . . 3 . 2 . . . . . . . . . . . . Scanalyzers 5 | . . . 2 . . . . . . . 3 . . . . . . . . . . Garrison Access 5 | . . . . . . . 1 . 1 . . . . . . 1 . 1 . 1 . Terminal Hacks 91 | . 7 . 9 1 24 . 1 1 1 . 2 7 . 32 . . . 6 . . . Record 42 | . . . . . 23 . . . . . . 6 . 11 . . . 2 . . . Part Schematic 12 | . . . . . . . . . . . . . . 12 . . . . . . . Robot Schematic 6 | . . . . . . . . . . . . . . 6 . . . . . . . Robot Analysis 14 | . 5 . 5 . . . 1 . . . 1 . . . . . . 2 . . . Prototype ID Bank 4 | . 1 . . . . . . . . . . . . 3 . . . . . . . Open Door 2 | . . . . 1 . . . . . . . 1 . . . . . . . . . Branch Access Points 3 | . . . 1 . . . . . . . 1 . . . . . . 1 . . . Terminal Index 3 | . 1 . 1 . . . . . . . . . . . . . . 1 . . . Unreport Threat 2 | . . . 1 . . . . . 1 . . . . . . . . . . . . Recall Investigation 1 | . . . 1 . . . . . . . . . . . . . . . . . . Garrison Registry 1 | . . . . . . . . 1 . . . . . . . . . . . . . EX-Prototype ID Bank 1 | . . . . . 1 . . . . . . . . . . . . . . . . Fabricator Hacks 3 | . . . . . . . . . . . 2 . . . . . . 1 . . . Network Status 2 | . . . . . . . . . . . 1 . . . . . . 1 . . . Build 1 | . . . . . . . . . . . 1 . . . . . . . . . . Repair Station Hacks 12 | . 5 . 1 . . . 2 . 4 . . . . . . . . . . . . Scan Component 7 | . 3 . 1 . . . 1 . 2 . . . . . . . . . . . . Repair 5 | . 2 . . . . . 1 . 2 . . . . . . . . . . . . Recycling Unit Hacks 2 | . 1 . . . . . . . 1 . . . . . . . . . . . . Process 1 | . 1 . . . . . . . . . . . . . . . . . . . . Report Inventory 1 | . . . . . . . . . 1 . . . . . . . . . . . . Scanalyzer . | . . . . . . . . . . . . . . . . . . . . . . Garrison Access Hacks 4 | . . . . . . . 1 . 1 . . . . . . . . 1 . 1 . Unlock Access 4 | . . . . . . . 1 . 1 . . . . . . . . 1 . 1 . Unauthorized Hacks 23 | . 7 . 6 . . . 4 . 1 . 2 . . . . . . 3 . . . Terminals 16 | . 6 . 5 . . . 2 . . . . . . . . . . 3 . . . Assimilate 3 | . 2 . 1 . . . . . . . . . . . . . . . . . . Botnet 9 | . 3 . 3 . . . 1 . . . . . . . . . . 2 . . . Operators 4 | . 1 . 1 . . . 1 . . . . . . . . . . 1 . . . Fabricators 1 | . . . . . . . . . . . 1 . . . . . . . . . . Haulers 1 | . . . . . . . . . . . 1 . . . . . . . . . . Repair Stations 1 | . . . . . . . 1 . . . . . . . . . . . . . . Mechanics 1 | . . . . . . . 1 . . . . . . . . . . . . . . Recycling Units 3 | . 1 . . . . . 1 . 1 . . . . . . . . . . . . Recyclers 3 | . 1 . . . . . 1 . 1 . . . . . . . . . . . . Scanalyzers 2 | . . . 1 . . . . . . . 1 . . . . . . . . . . Extract 2 | . . . 1 . . . . . . . 1 . . . . . . . . . . Garrison Access . | . . . . . . . . . . . . . . . . . . . . . . Data Cores Recovered 3 | . 1 . . . . . 2 . . . . . . . . . . . . . . Used 3 | . 1 . . . . . 2 . . . . . . . . . . . . . . Hacking Detections 53 | . 10 . 11 . . . 7 3 3 . 6 . . . . 2 . 9 . 2 . Full Trace Events 8 | . 2 . 1 . . . 2 1 . . 1 . . . . . . 1 . . . Feedback Events 1 | . . . 1 . . . . . . . . . . . . . . . . . . Corruption 1 | . . . 1 . . . . . . . . . . . . . . . . . . Feedback Blocked . | . . . . . . . . . . . . . . . . . . . . . . Robot Schematics Acquired 6 | . . . . . . . . . . . . . . 6 . . . . . . . Robots Built . | . . . . . . . . . . . . . . . . . . . . . . Authchips . | . . . . . . . . . . . . . . . . . . . . . . Time . | . . . . . . . . . . . . . . . . . . . . . . Total Robot Build Rating . | . . . . . . . . . . . . . . . . . . . . . . Part Schematics Acquired 18 | . . . 3 . . . . . . . 3 . . 12 . . . . . . . Parts Built 1 | . . . . . . . . . . . 1 . . . . . . . . . . Authchips . | . . . . . . . . . . . . . . . . . . . . . . Time 47 | . . . . . . . . . . . 47 . . . . . . . . . . Total Part Build Rating 5 | . . . . . . . . . . . 5 . . . . . . . . . . Parts Repaired 5 | . 2 . . . . . 1 . 2 . . . . . . . . . . . . Time 163 | . 58 . . . . . 61 . 44 . . . . . . . . . . . . Parts Recycled . | . . . . . . . . . . . . . . . . . . . . . . Recycled Matter 366 | . 366 . . . . . . . . . . . . . . . . . . . . Retrieved Matter . | . . . . . . . . . . . . . . . . . . . . . . Retrieved Components . | . . . . . . . . . . . . . . . . . . . . . . Parts Scanalyzed . | . . . . . . . . . . . . . . . . . . . . . . Part Schematics Acquired . | . . . . . . . . . . . . . . . . . . . . . . Parts Damaged . | . . . . . . . . . . . . . . . . . . . . . . Bothacking | -11 -10 -10 -9 -9 -9 -8 -8 -8 -8 -8 -7 -7 -7 -7 -6 -6 -6 -6 -6 -6 -6 ------------ Run | Jun Mat Min Mat Min Exi Min Mat Gar Mat Gar Fac Low Low Dat Pro Fac Was Fac Gar Fac Gar Used RIF Installer 4 | . . . . . . . . 2 . 2 . . . . . . . . . . . Watcher Feeds 1 | . . . . . . . . 1 . . . . . . . . . . . . . Patrol Navigation 1 | . . . . . . . . . . 1 . . . . . . . . . . . Autoassimilate 1 | . . . . . . . . . . 1 . . . . . . . . . . . Robots Hacked 16 | . . . . . 4 . . 7 . . 3 1 . . . . . . . . 1 Non-combat 5 | . . . . . 3 . . . . . 2 . . . . . . . . . . Combat 11 | . . . . . 1 . . 7 . . 1 1 . . . . . . . . 1 Autoassimilated 1 | . . . . . . . . . . . . 1 . . . . . . . . . Robot Hacks Applied 16 | . . . . . 4 . . 7 . . 4 . . . . . . . . . 1 parse_system 6 | . . . . . 4 . . . . . 1 . . . . . . . . . 1 purge_threat 1 | . . . . . . . . . . . 1 . . . . . . . . . . reboot_system 2 | . . . . . . . . 2 . . . . . . . . . . . . . formatsys_high 7 | . . . . . . . . 5 . . 2 . . . . . . . . . . Relay Couplers Released 29 | . . . . . . . . 21 . 4 . . . . . . . . 4 . . Machine Destruction 29 | . . . . . . . . 21 . 4 . . . . . . . . 4 . . Attached 12 | . . . . . . . . 7 . . 3 . . . . . . . 2 . . Fabnet Peak Effective % . | . . . . . . . . . . . . . . . . . . . . . . Robots Rewired 10 | . . . . . . . . 8 . . . . . . 2 . . . . . . Allies Hacked . | . . . . . . . . . . . . . . . . . . . . . . Hacks Repelled . | . . . . . . . . . . . . . . . . . . . . . . Allies | -11 -10 -10 -9 -9 -9 -8 -8 -8 -8 -8 -7 -7 -7 -7 -6 -6 -6 -6 -6 -6 -6 -------- Run | Jun Mat Min Mat Min Exi Min Mat Gar Mat Gar Fac Low Low Dat Pro Fac Was Fac Gar Fac Gar Total Allies 26 | . 1 3 1 . . . . 13 . . 2 3 . . 3 . . . . . . Largest Group 6 | . 1 2 1 . . . . 6 . . 2 2 1 . 2 . . . . . . Highest-Rated Group 96 | . 10 43 31 . . . . 80 . . 58 56 31 . 96 . . . . . . Highest-Rated Ally 96 | . 10 31 31 . . . . 16 . . 32 31 31 . 96 . . . . . . Total Orders 5 | . . . . . . . . 3 . . 2 . . . . . . . . . . STAY 3 | . . . . . . . . 2 . . 1 . . . . . . . . . . FOLLOW 2 | . . . . . . . . 1 . . 1 . . . . . . . . . . Ally Attacks 99 | . . 13 6 . . . . 52 . . 2 7 . . 19 . . . . . . Total Damage 2195 | . . 169 42 . . . . 724 . . 79 105 . . 1076 . . . . . . Kills 20 | . . 2 1 . . . . 9 . . . 1 . . 7 . . . . . . Allies Corrupted . | . . . . . . . . . . . . . . . . . . . . . . Allies Melted 1 | . . . . . . . . . . . 1 . . . . . . . . . . Intel | -11 -10 -10 -9 -9 -9 -8 -8 -8 -8 -8 -7 -7 -7 -7 -6 -6 -6 -6 -6 -6 -6 ------- Run | Jun Mat Min Mat Min Exi Min Mat Gar Mat Gar Fac Low Low Dat Pro Fac Was Fac Gar Fac Gar Robot Analysis Total 14 | . 5 . 5 . . . 1 . . . 1 . . . . . . 2 . . . Derelict Logs Recovered 8 | . . 3 . 2 . . . . . . . 1 1 . 1 . . . . . . Drone Launches . | . . . . . . . . . . . . . . . . . . . . . . Drone Recoveries . | . . . . . . . . . . . . . . . . . . . . . . Exploration | -11 -10 -10 -9 -9 -9 -8 -8 -8 -8 -8 -7 -7 -7 -7 -6 -6 -6 -6 -6 -6 -6 ------------- Run | Jun Mat Min Mat Min Exi Min Mat Gar Mat Gar Fac Low Low Dat Pro Fac Was Fac Gar Fac Gar Turns Passed 18334 | 74 1532 1452 2671 988 469 510 1627 2019 414 672 629 951 473 86 683 449 89 1359 977 161 49 Spaces Moved 9206 | 45 578 754 1015 482 243 261 799 995 243 337 330 684 346 77 291 333 139 698 364 145 47 Core 178 | 12 . . . . . . . . . . . . . . . . . . 63 99 4 Treads 918 | . 550 368 . . . . . . . . . . . . . . . . . . . Legs 6674 | 33 28 386 1015 482 243 261 799 995 243 337 330 684 311 . 235 82 . . 210 . . Wheels 89 | . . . . . . . . . . . . . . . . . . . . 46 43 Hover 1347 | . . . . . . . . . . . . . 35 77 56 251 139 698 91 . . Flight . | . . . . . . . . . . . . . . . . . . . . . . Fastest Speed 50 | 50 120 120 120 190 190 190 127 120 120 120 120 120 112 112 112 106 56 56 50 50 50 Average Speed 138 | 101 158 139 203 190 190 190 128 124 120 120 128 123 119 112 176 114 57 79 120 62 86 Slowest Speed 260 | 120 160 160 260 190 190 190 195 127 120 120 190 190 120 112 240 190 106 106 260 90 90 Overloaded Moves . | . . . . . . . . . . . . . . . . . . . . . . Propulsion Burnouts . | . . . . . . . . . . . . . . . . . . . . . . Robots Hopped . | . . . . . . . . . . . . . . . . . . . . . . Cave-ins Triggered . | . . . . . . . . . . . . . . . . . . . . . . Exploration Rate (%) 52 | 3 93 97 79 95 64 74 54 80 35 37 16 89 51 69 53 8 75 15 53 4 9 Regions Visited 21 Branch Regions 8 Pre-discovered Areas 6 | . . 1 . 2 1 . . . . . . 1 . 1 . . . . . . . Known Exits Taken 7 | . . . 1 . 1 . 1 . 1 . 1 . . . . . . 1 . 1 . Unknown Exits Taken 9 | 1 1 1 . 1 . 1 . . . . . 1 1 1 1 . . . . . . Scrap Searched 11 | . . 2 . 1 . . . . . . . 5 2 . 1 . . . . . . Spaces Dug 58 | . . . . . . . 38 . . 10 . . . . . . . 10 . . . Terrain Destroyed 560 | . 7 3 25 . . . 65 99 . 211 12 14 1 . . . . 34 89 . . Melee . | . . . . . . . . . . . . . . . . . . . . . . Projectile 41 | . . . . . . . . . . 19 6 14 1 . . . . . 1 . . AOE 519 | . 7 3 25 . . . 65 99 . 192 6 . . . . . . 34 88 . . Terrain Rammed . | . . . . . . . . . . . . . . . . . . . . . . Walls Destroyed . | . . . . . . . . . . . . . . . . . . . . . . Machines Disabled . | . . . . . . . . . . . . . . . . . . . . . . Actions | -11 -10 -10 -9 -9 -9 -8 -8 -8 -8 -8 -7 -7 -7 -7 -6 -6 -6 -6 -6 -6 -6 --------- Run | Jun Mat Min Mat Min Exi Min Mat Gar Mat Gar Fac Low Low Dat Pro Fac Was Fac Gar Fac Gar Total 13595 | 68 1097 1000 1427 535 248 266 1249 1637 350 541 514 735 378 76 391 392 149 1456 814 217 55 Wait 2844 | 1 436 115 189 29 . . 323 300 86 127 137 8 3 . 17 10 1 707 292 57 6 Move 9183 | 44 577 753 1014 481 242 260 798 993 242 335 329 683 345 76 290 333 138 697 362 144 47 Hop . | . . . . . . . . . . . . . . . . . . . . . . Pick Up 249 | 11 17 13 37 9 1 . 18 34 7 9 11 5 3 . 10 15 2 6 33 8 . Fast Attach 1 | . . . . . . . . . 1 . . . . . . . . . . . . Attach 149 | 7 5 10 19 . . . 10 13 1 2 6 3 6 . 7 13 2 4 36 5 . Detach 14 | . . . . . . . . 1 . . . . . . . 4 2 3 4 . . Swap 97 | 1 2 8 10 1 1 1 9 31 . 8 10 3 . . . 2 1 8 1 . . Drop 146 | 1 7 9 27 4 . . 13 24 4 12 5 5 5 . 2 8 3 4 10 3 . Fire 684 | 3 53 70 119 11 . 5 77 96 9 48 14 28 16 . 36 7 . 27 65 . . Melee 35 | . . 19 . . 4 . . . . . . . . . . . . . 11 . 1 Ram 1 | . . . . . . . . . . . . . . . . . . . . . 1 Kick 2 | . . . . . . . 1 . . . 1 . . . . . . . . . . Crush 3 | . . 3 . . . . . . . . . . . . . . . . . . . Escape Stasis 10 | . . . . . . . . 10 . . . . . . . . . . . . . Rewire 108 | . . . . . . . . 78 . . 1 . . . 29 . . . . . . Trap 69 | . . . 12 . . . . 57 . . . . . . . . . . . . . Miscellaneous . | . . . . . . . . . . . . . . . . . . . . . . Route ------- -11/Junkyard -10/Materials (discovered 4 exits: *Mat x3 / [*Min]) -10/Mines (discovered 2 exits: *Mat x2) -9/Materials (discovered 4 exits: *Mat x3 / *Min) -9/Mines (discovered 3 exits: *Mat x2 / *Exi) -9/Exiles -8/Mines (discovered 2 exits: *Mat x2) -8/Materials (discovered 3 exits: *Sto x2 / Gar) -8/Garrison (discovered 3 exits: *Mat x3) -8/Materials -8/Garrison -7/Factory (discovered 2 exits: *Low x2) -7/Lower Caves (discovered 2 exits: [*Low] / *Dat) -7/Lower Caves -7/Data Miner -6/Proximity Caves -6/Factory -6/Waste -6/Factory (discovered 5 exits: [*Fac x2] / *Low x2 / Gar) -6/Garrison -6/Factory -6/Garrison History --------- Turn | Location | Event 10 | -11/Junkyard | Discovered new exit (range 16) 75 | -11/Junkyard | Entered Materials 318 | -10/Materials | Build established: Mutant 322 | -10/Materials | Discovered new exit (range 16) 408 | -10/Materials | Repaired Signal Interpreter 441 | -10/Materials | Repaired Imp. Treads 726 | -10/Materials | Discovered new exit (range 10) 798 | -10/Materials | Discovered new exit (range 16) 1301 | -10/Materials | Discovered new exit (range 16) 1607 | -10/Materials | Entered Mines 1607 | -10/Mines | Accompanied by 1 ally 1824 | -10/Mines | Learned location of Zion (-6) 1849 | -10/Mines | Excavation squad dispatched 1849 | -10/Mines | A large section of the Mines collapsed 2099 | -10/Mines | Excavation squad dispatched 2218 | -10/Mines | Core integrity fell below 50% 2349 | -10/Mines | Excavation squad dispatched 2362 | -10/Mines | Discovered new exit (range 10) 2572 | -10/Mines | Core integrity fell below 20% 2724 | -10/Mines | Build established: Scavenger-Mutant 2785 | -10/Mines | Discovered new exit (range 5) 2786 | -10/Mines | Escorted by a lone wolf Derelict 2866 | -10/Mines | A weapon hastily lodged in a ceiling crevice suddenly fell to the ground 3059 | -10/Mines | Entered Materials 3059 | -9/Materials | Accompanied by 1 ally 3059 | -9/Materials | Evolved 2 slots: Utility x2 3060 | -9/Materials | Identified exit to Mines 3388 | -9/Materials | Central database locked down 4050 | -9/Materials | Discovered new exit (range 9) 4606 | -9/Materials | Discovered new exit (range 5) 4914 | -9/Materials | Discovered new exit (range 15) 5010 | -9/Materials | Build established: Mutant 5459 | -9/Materials | First assault squad dispatched 5578 | -9/Materials | Destroyed 11 combat bots 5730 | -9/Materials | Entered Mines 5826 | -9/Mines | Met a Derelict who couldn't figure out how to use a Trap Extractor 5870 | -9/Mines | Build established: Scavenger-Mutant 6111 | -9/Mines | Learned location of Storage (-8) 6203 | -9/Mines | Learned Materials garrison access intel 6500 | -9/Mines | Discovered new exit (range 12) 6565 | -9/Mines | Discovered new exit (range 6) 6574 | -9/Mines | Received a Rocket Launcher from a helpful Derelict 6708 | -9/Mines | Deemed a non-threat by the Exiles lab entrance 6710 | -9/Mines | Discovered new exit (range 5) 6718 | -9/Mines | Entered Exiles 6719 | -9/Exiles | Identified exit to Mines 6766 | -9/Exiles | Met 8R-AWN 6801 | -9/Exiles | Met EX-HEX 6856 | -9/Exiles | Met EX-BIN 6895 | -9/Exiles | Aligned with FarCom system 6897 | -9/Exiles | Given EX-Vault access code 6952 | -9/Exiles | Opened EX-Vault 6964 | -9/Exiles | Found Skeleton Box 7003 | -9/Exiles | Warned to stay clear of 0b10 Research branches 7054 | -9/Exiles | Met EX-DEC 7187 | -9/Exiles | Left Exiles lab with Skeleton Box 7187 | -9/Exiles | Entered Mines 7486 | -8/Mines | Discovered new exit (range 13) 7680 | -8/Mines | Discovered new exit (range 5) 7697 | -8/Mines | Entered Materials 7697 | -8/Materials | Evolved 2 slots: Propulsion x2 7698 | -8/Materials | Identified exit to Storage 7699 | -8/Materials | Loaded intel: 1 garrison access location 8003 | -8/Materials | Build established: Mutant 8555 | -8/Materials | Repaired Corrupted System Restoration Module 9013 | -8/Materials | Discovered exit to Storage (range 15) 9323 | -8/Materials | Identified exit to Garrison 9324 | -8/Materials | Entered Garrison 9525 | -8/Garrison | Garrison Relay disabled 9694 | -8/Garrison | Triggered checkpoint 9763 | -8/Garrison | Discovered new exit (range 9) 9790 | -8/Garrison | Triggered checkpoint 9823 | -8/Garrison | Garrison Relay disabled 9904 | -8/Garrison | Triggered checkpoint 9964 | -8/Garrison | Installed Relay Interface Framework 9974 | -8/Garrison | Discovered new exit (range 12) 10002 | -8/Garrison | Triggered checkpoint 10018 | -8/Garrison | Garrison Relay disabled 10096 | -8/Garrison | Triggered checkpoint 10348 | -8/Garrison | Triggered checkpoint 10363 | -8/Garrison | Core integrity fell below 50% 10537 | -8/Garrison | Garrison Relay disabled 10689 | -8/Garrison | Phase Generator disabled 10717 | -8/Garrison | Discovered new exit (range 50) 10717 | -8/Garrison | Discovered new exit (range 70) 10717 | -8/Garrison | Discovered new exit (range 87) 10800 | -8/Garrison | Build established: Commander-Mutant 10828 | -8/Garrison | Triggered checkpoint 11045 | -8/Garrison | Expanded RIF knowledge: Watcher Feeds 11214 | -8/Garrison | Triggered checkpoint 11262 | -8/Garrison | Garrison Relay disabled 11343 | -8/Garrison | Entered Materials 11447 | -8/Materials | Build established: Scavenger-Mutant 11583 | -8/Materials | Repaired System Restoration Module 11606 | -8/Materials | Repaired Imp. Carbon-fiber Leg 11756 | -8/Materials | Identified exit to Garrison 11757 | -8/Materials | Entered Garrison 11878 | -8/Garrison | Triggered checkpoint 11880 | -8/Garrison | Garrison Relay disabled 11923 | -8/Garrison | Core integrity fell below 20% 11939 | -8/Garrison | Expanded RIF knowledge: Patrol Navigation 12180 | -8/Garrison | Discovered new exit (range 12) 12222 | -8/Garrison | Phase Generator disabled 12307 | -8/Garrison | Triggered checkpoint 12360 | -8/Garrison | Expanded RIF knowledge: Autoassimilate 12429 | -8/Garrison | Entered Factory 12429 | -7/Factory | Evolved 2 slots: Utility x2 12640 | -7/Factory | Fabricated Cloaking Device (x1) 12821 | -7/Factory | Identified exit to Lower Caves 13058 | -7/Factory | Entered Lower Caves 13391 | -7/Lower Caves | A Derelict revealed a hidden shortcut to meet someone special 13651 | -7/Lower Caves | A Commander dispatched an escort 13676 | -7/Lower Caves | Learned Factory emergency access door positions 13676 | -7/Lower Caves | Learned Extension terminal intel 13733 | -7/Lower Caves | Attracted the attention of an 0b10 checkpoint 13810 | -7/Lower Caves | Discovered new exit (range 12) 14009 | -7/Lower Caves | Entered another Lower Caves area 14009 | -7/Lower Caves | Accompanied by 1 ally 14010 | -7/Lower Caves | Commander's escort returned to base 14088 | -7/Lower Caves | Learned Factory terminal intel 14418 | -7/Lower Caves | Discovered new exit (range 7) 14466 | -7/Lower Caves | Lost 4 parts (1p1n2u) 14482 | -7/Lower Caves | Entered Data Miner 14482 | -7/Data Miner | Discovered new exit (range 6) 14504 | -7/Data Miner | Met Data Miner 14523 | -7/Data Miner | Learned location of Section 7 (-2) 14523 | -7/Data Miner | Acquired the access code to Warlord's prototype stash 14543 | -7/Data Miner | Received God Mode back door access code from Data Miner 14568 | -7/Data Miner | Entered Proximity Caves 14616 | -6/Proximity Caves | Escorted by Enhanced Grunt 14636 | -6/Proximity Caves | Learned Factory emergency access door positions 14642 | -6/Proximity Caves | Attracted the attention of an 0b10 outpost 14676 | -6/Proximity Caves | Found Prototype Device 14677 | -6/Proximity Caves | Identified Exp. Thermal Shield 14686 | -6/Proximity Caves | Lost 4 parts (2n2w) 14831 | -6/Proximity Caves | System corruption reached 10% 15230 | -6/Proximity Caves | Discovered new exit (range 12) 15251 | -6/Proximity Caves | Entered Factory 15251 | -6/Factory | Evolved 2 slots: Utility x2 15253 | -6/Factory | Loaded intel: 25 terminal locations 15324 | -6/Factory | System corruption reached 10% 15697 | -6/Factory | Discovered new exit (range 15) 15700 | -6/Factory | Sucked down chute 15700 | -6/Factory | Entered Waste 15705 | -6/Waste | Found Prototype Device 15706 | -6/Waste | Identified Adv. Kinecellerator 15726 | -6/Waste | Spotted C-40 Crusher 15726 | -6/Waste | Spotted C-40 Crusher 15734 | -6/Waste | Spotted C-40 Crusher 15736 | -6/Waste | Spotted C-40 Crusher 15747 | -6/Waste | Spotted C-40 Crusher 15747 | -6/Waste | Spotted C-40 Crusher 15780 | -6/Waste | Discovered new exit (range 16) 15789 | -6/Waste | Entered Factory 16067 | -6/Factory | Discovered new exit (range 9) 16287 | -6/Factory | Discovered new exit (range 7) 16350 | -6/Factory | Discovered new exit (range 35) 16957 | -6/Factory | Identified exit to Lower Caves 17147 | -6/Factory | Identified exit to Garrison 17148 | -6/Factory | Entered Garrison 17265 | -6/Garrison | Lost 6 parts (1p1n4w) 17456 | -6/Garrison | Phase Generator disabled 17770 | -6/Garrison | Triggered checkpoint 17778 | -6/Garrison | Lost 4 parts (1p1u2w) 17796 | -6/Garrison | Garrison Relay disabled 18048 | -6/Garrison | Triggered checkpoint 18048 | -6/Garrison | Triggered checkpoint 18054 | -6/Garrison | Core integrity fell below 50% 18066 | -6/Garrison | Triggered checkpoint 18085 | -6/Garrison | Core integrity fell below 20% 18119 | -6/Garrison | Discovered new exit (range 12) 18124 | -6/Garrison | Identified exit to Factory 18125 | -6/Garrison | Lost 13 parts (1p4n3u5w) 18125 | -6/Garrison | Entered Factory 18285 | -6/Factory | Identified exit to Garrison 18286 | -6/Factory | Entered Garrison 18335 | -6/Garrison | Destroyed by H-66 Slayer with Gauss Rifle Last Messages --------------- LOCATION=GARRISON GOAL=ESCAPE 18286_ Receiving FarCom transmissions... 18323_ Triggered Alarm Trap. 18323_ An alarm sounds. 18323_ Extracted 150 matter. 18325_ Jacked E-15 Imp... >>parse_system Reading system data... 18325_ Arm. Wheel blown off. 18325_ E-15 Imp destroyed. 18325_ Imp. Datajack blown off. 18325_ System Shield blown off. 18325_ Relay Coupler [Brawler] blown off. 18325_ Machine Analyzer blown off. 18325_ E-15 Imp destroyed. 18327_ Imp. Signal Interpreter blown off. 18327_ E-15 Imp destroyed. 18332_ Slug penetrates Wall. 18334_ Slammed into H-66 Slayer. Map ----- +----------------------------------------------------+ | ?????????????????????????????????????????????????? | | ?????????????????????????????????????????????????? | | ?????????????????????????????????????????????????? | | ?????????????????????????????????????#???????????? | | ?################################# #???????????? | | ?# #???????????? | | ?# #???????????? | | ?# #???????????? | | ?# #################### #######???????????????? | | ?# #??????????????????# #?????????????????????? | | ?#####??????????????????# #?????????????????????? | | ????????????????????????# #?????????????????????? | | ????????????????????????# #?????????????????????? | | ????????????????????????# #?????????????????????? | | ????????????????????????# #????###??????????????? | | ????????????????????????# #???"""#??????????????? | | ????????????????????????# ### ###?????????????? | | ????????????????????????# #?????????????? | | ????????????????????????# #?????????????? | | ????????????????????????# ##"""""##?????????????? | | ????????????????????????#= #?????????????????????? | | ????????????????????????#%/#?????????????????????? | | ???????????????????????##/=#?????????????????????? | | ????????????????????????+/%#?????????????????????? | | ????????????????????????#h##?????????????????????? | | ???????????????????????##@###????????????????????? | | ???????????????????????#!==!#????????????????????? | | ???????????????????????#!==!#????????????????????? | | ???????????????????????##!!##????????????????????? | | ????????????????????????####?????????????????????? | | ?????????????????????????????????????????????????? | | ?????????????????????????????????????????????????? | | ?????????????????????????????????????????????????? | | ?????????????????????????????????????????????????? | | ?????????????????????????????????????????????????? | | ?????????????????????????????????????????????????? | | ?????????????????????????????????????????????????? | | ?????????????????????????????????????????????????? | | ?????????????????????????????????????????????????? | | ?????????????????????????????????????????????????? | | | | | | | | | | | | | | | | | | | | | +----------------------------------------------------+ Best States ------------- Heat Dissipation 75 Energy Generation 21 Energy Capacity 290 Matter Stores 300 Matter Capacity 300 Sight Range 16 Terrain Scan Range 16 Terrain Scan Density 10 Jamming Range 14 Cloak Strength 2 Power Amplification 20 Armor Coverage 300 Resistance: KI 20 Resistance: TH 30 Evasion (%) 55 Targeting Accuracy 8 Core Analysis 6 Recoil Reduction 2 Defensive Hacking 14 Relay Coupler Types 3 Relay Coupler Value 63 Item Schematics ----------------- Sml. Matter Pod | -9/Materials | Extracted Imp. Ion Engine | -9/Materials | Extracted Flight Unit | -9/Materials | Extracted Arm. Wheel | -7/Factory | Extracted Matter Filter | -7/Factory | Extracted System Shield | -7/Factory | Extracted Combat Drone Bay | -7/Data Miner | Free Lgt. Regenerative Plating | -7/Data Miner | Free Biomechanical Wings | -7/Data Miner | Free Exp. Targeting Computer | -7/Data Miner | Free Imp. Lightning Gun | -7/Data Miner | Free Remote Force Field | -7/Data Miner | Free Hvy. Treads | -7/Data Miner | Free Hyp. Gauss Cannon | -7/Data Miner | Free Angular Momentum Engine | -7/Data Miner | Free Imp. Arc Projector | -7/Data Miner | Free Hvy. Disruptor Cannon | -7/Data Miner | Free Matter Neutralizer | -7/Data Miner | Free Robot Schematics ------------------ B-48 Gladiator | -7/Data Miner | Free S-27 Virus | -7/Data Miner | Free G-50 Soldier | -7/Data Miner | Free M-28 Smith | -7/Data Miner | Free I-47 Archangel | -7/Data Miner | Free B-60 Warrior | -7/Data Miner | Free Fabricated ------------ Cloaking Device | x1 | -7/Factory | Preloaded Alien Tech Used ----------------- None Achievements -------------- None Challenges ------------ None Game ------ Seed CombatSeismicCycler Manual? 0 Play Time 02:27:36 Cumulative 136.5 hours Start 2023.07.11 @ 21:06:44 End 2023.07.11 @ 23:49:18 Sessions 1 Manual Loads 0 Difficulty Rogue Special Mode None Game No. 125 Rogue 125 Adventurer 0 Explorer 0 Win Type - Total 1 Types 1/0/0/0/0/0/0/0/0 Lore% 47 Gallery% 63 Achievement% 51 Wizard Run 0 Options --------- ASCII 0 Keyboard 0 Movement Numpad Keybinds 0 Fullscreen 2 Font 18/Smallcaps Map View 76x50 Tactical HUD 1 Map Filters NONE Filters NONE Steam 1 RUN: 0128728a-dbd7-438e-a722-e19d95791c65